fUSD/lending_fUSD_20241011
["ID","MTS","AMOUNT","RATE_DAILY","PERIOD"]
[340125626,1728647445295,-228.62539,0.0001287,2]
[340125627,1728647445305,-151.0,0.0001287,2]
[340125628,1728647445315,-151.0,0.0001287,2]
[340125629,1728647445325,-151.0,0.0001287,2]
[340125630,1728647445334,-229.59339,0.0001287,2]
[340125631,1728647445344,-194.892409,0.0001287,2]
[340125632,1728647445354,-194.892409,0.0001287,2]
[340125633,1728647445363,-151.0,0.0001287,2]
[340125634,1728647445372,-153.331453,0.0001287,2]
[340125635,1728647445383,-164.735868,0.0001287,2]
[340125636,1728647445392,-164.735868,0.0001287,2]
[340125637,1728647445404,-611.926301,0.0001287,2]
[340125638,1728647445414,-202.107195,0.0001287,2]
[340125639,1728647445423,-151.0,0.0001287,2]
[340125640,1728647445434,-611.926301,0.0001287,2]
[340125641,1728647445444,-202.107195,0.0001287,2]
[340125642,1728647445454,-351.176188,0.0001287,2]
[340125643,1728647445463,-351.176188,0.0001287,2]
[340125644,1728647445474,-151.0,0.0001287,2]
[340125645,1728647445483,-151.0,0.0001287,2]
[340125646,1728647445494,-151.0,0.0001287,2]
[340125647,1728647445503,-151.0,0.0001287,2]
[340125648,1728647445513,-151.0,0.0001287,2]
[340125649,1728647445523,-864.831692,0.0001287,2]
[340125650,1728647445532,-479.730589,0.0001287,2]
[340125651,1728647445542,-864.831692,0.0001287,2]
[340125652,1728647445551,-479.730589,0.0001287,2]
[340125653,1728647445561,-304.786281,0.0001287,2]
[340125654,1728647445570,-304.786281,0.0001287,2]
[340125655,1728647445580,-151.0,0.0001287,2]
[340125656,1728647445589,-151.0,0.0001287,2]
[340125657,1728647445599,-170.875858,0.0001287,2]
[340125658,1728647445608,-151.0,0.0001287,2]
[340125659,1728647445618,-170.875858,0.0001287,2]
[340125660,1728647445628,-9292.169073,0.0001287,2]
[340125661,1728647445637,-1198.606766,0.0001287,2]
[340125662,1728647445646,-9292.169073,0.0001287,2]
[340125663,1728647445656,-151.0,0.0001287,2]
[340125664,1728647445666,-1198.606766,0.0001287,2]
[340125665,1728647445676,-151.0,0.0001287,2]
[340125666,1728647445687,-728.984178,0.0001287,2]
[340125667,1728647445697,-151.0,0.0001287,2]
[340125668,1728647445707,-728.984178,0.0001287,2]
[340125669,1728647445716,-151.0,0.0001287,2]
[340125670,1728647445726,-156.231864,0.0001287,2]
[340125671,1728647445735,-151.0,0.0001287,2]
[340125672,1728647445744,-151.0,0.0001287,2]
[340125673,1728647445754,-153.116557,0.0001287,2]
[340125674,1728647445763,-151.0,0.0001287,2]
[340125675,1728647445773,-500.0,0.00012873,2]
[340125676,1728647445783,-500.0,0.00012877,2]
[340125677,1728647445793,-500.0,0.00012877,2]
[340125678,1728647445802,-314.54,0.00012884,2]
[340125679,1728647445812,-3656.5647778,0.0001289,2]
[340125680,1728647445821,-804.8545417,0.00012891,2]
[340125681,1728647445830,-179.99,0.00012893,2]
[340125682,1728647445843,-31344.00325241,0.00012899,2]
[340125683,1728647445852,-151.0,0.00012899,2]
[340125684,1728647445863,-151.0,0.00012899,2]
[340125685,1728647445872,-151.0,0.00012899,2]
[340125686,1728647445882,-153.937642,0.00012899,2]
[340125687,1728647445891,-151.0,0.00012899,2]
[340125688,1728647445900,-251.051017,0.00012899,2]
[340125689,1728647445910,-12275.12747083,0.000129,2]
[340125690,1728647445919,-507.39541174,0.000129,2]
[340125691,1728647445929,-151.0,0.000129,2]
[340125692,1728647445938,-151.0,0.000129,2]
[340125693,1728647445947,-1855.989306,0.000129,2]
[340125694,1728647445957,-257.704443,0.000129,2]
[340125695,1728647445967,-151.0,0.000129,2]
[340125696,1728647445976,-151.0,0.000129,2]
[340125697,1728647445986,-151.0,0.000129,2]
[340125698,1728647445995,-151.0,0.000129,2]
[340125699,1728647446005,-151.0,0.000129,2]
[340125700,1728647446016,-151.0,0.000129,2]
[340125701,1728647446025,-153.757302,0.000129,2]
[340125702,1728647446035,-151.0,0.000129,2]
[340125703,1728647446045,-196.808932,0.000129,2]
[340125704,1728647446055,-278.131295,0.000129,2]
[340125705,1728647446065,-278.131295,0.000129,2]
[340125706,1728647446075,-151.0,0.000129,2]
[340125707,1728647446083,-151.0,0.000129,2]
[340125708,1728647446093,-151.0,0.000129,2]
[340125709,1728647446103,-153.321336,0.000129,2]
[340125710,1728647446112,-151.0,0.000129,2]
[340125711,1728647446123,-151.0,0.000129,2]
[340125712,1728647446133,-151.0,0.000129,2]
[340125713,1728647446144,-151.0,0.000129,2]
[340125714,1728647446153,-151.0,0.000129,2]
[340125715,1728647446163,-294.341139,0.000129,2]
[340125716,1728647446173,-151.0,0.000129,2]
[340125717,1728647446183,-489.075991,0.000129,2]
[340125718,1728647446193,-151.0,0.000129,2]
[340125719,1728647446203,-489.075991,0.000129,2]
[340125720,1728647446213,-151.0,0.000129,2]
[340125721,1728647446223,-508.344845,0.000129,2]
[340125722,1728647446233,-305.46518,0.000129,2]
[340125723,1728647446243,-244.01652,0.000129,2]
[340125725,1728647446253,-508.344845,0.000129,2]
[340125727,1728647446262,-305.46518,0.000129,2]
[340125729,1728647446272,-176.573837,0.000129,2]
[340125731,1728647446281,-176.573837,0.000129,2]
[340125732,1728647446291,-151.0,0.000129,2]
[340125733,1728647446302,-151.0,0.000129,2]
[340125734,1728647446312,-151.0,0.000129,2]
[340125735,1728647446322,-151.0,0.000129,2]
[340125736,1728647446332,-151.0,0.000129,2]
[340125737,1728647446342,-217.132247,0.000129,2]
[340125738,1728647446352,-217.132247,0.000129,2]
[340125739,1728647446362,-151.0,0.000129,2]
[340125740,1728647446372,-151.0,0.000129,2]
[340125741,1728647446382,-151.0,0.000129,2]
[340125742,1728647446393,-151.0,0.000129,2]
[340125743,1728647446405,-151.0,0.000129,2]
[340125744,1728647446417,-228.62539,0.000129,2]
[340125745,1728647446427,-228.62539,0.000129,2]
[340125746,1728647446437,-151.0,0.000129,2]
[340125747,1728647446450,-219.795104,0.000129,2]
[340125748,1728647446461,-151.0,0.000129,2]
[340125749,1728647446471,-194.892409,0.000129,2]
[340125750,1728647446484,-194.892409,0.000129,2]
[340125751,1728647446495,-151.0,0.000129,2]
[340125752,1728647446505,-164.735868,0.000129,2]
[340125753,1728647446515,-164.735868,0.000129,2]
[340125754,1728647446525,-611.926301,0.000129,2]
[340125755,1728647446535,-202.107195,0.000129,2]
[340125756,1728647446545,-151.0,0.000129,2]
[340125757,1728647446556,-611.926301,0.000129,2]
[340125758,1728647446567,-202.107195,0.000129,2]
[340125759,1728647446576,-351.176188,0.000129,2]
[340125760,1728647446586,-351.176188,0.000129,2]
[340125761,1728647446596,-151.0,0.000129,2]
[340125762,1728647446606,-151.0,0.000129,2]
[340125763,1728647446617,-238.760484,0.000129,2]
[340125764,1728647446627,-151.0,0.000129,2]
[340125765,1728647446637,-151.0,0.000129,2]
[340125766,1728647446647,-864.831692,0.000129,2]
[340125767,1728647446657,-479.730589,0.000129,2]
[340125768,1728647446667,-864.831692,0.000129,2]
[340125769,1728647446676,-479.730589,0.000129,2]
[340125770,1728647446686,-304.786281,0.000129,2]
[340125771,1728647446696,-304.786281,0.000129,2]
[340125772,1728647446706,-150.0,0.000129,2]
[340125773,1728647446717,-151.0,0.000129,2]
[340125774,1728647446727,-151.0,0.000129,2]
[340125775,1728647446737,-2838.75462826,0.000129,2]
[340125776,1728647446754,-913.64986288,0.000129,2]
[340125777,1728647446782,-2546.88,0.000129,2]
[340125778,1728647446798,-1493.397668,0.000129,2]
[340125779,1728647446945,-151.0,0.00012329,2]
[340125780,1728647446955,-213.34488085,0.00012329,2]
[340125781,1728647446967,-67.17077915,0.00012329,2]
[340125782,1728647446977,-1192.82922085,0.000129,2]
[340125783,1728647446989,-9443.61487259,0.000129,2]
[340125784,1728647446999,-170.875858,0.000129,2]
[340125785,1728647447009,-151.0,0.000129,2]
[340125786,1728647447019,-170.875858,0.000129,2]
[340125787,1728647447029,-9292.169073,0.000129,2]
[340125788,1728647447039,-1198.606766,0.000129,2]
[340125789,1728647447048,-9292.169073,0.000129,2]
[340125790,1728647447058,-151.0,0.000129,2]
[340125791,1728647447068,-1198.606766,0.000129,2]
[340125792,1728647447077,-151.0,0.000129,2]
[340125793,1728647447087,-728.984178,0.000129,2]
[340125794,1728647447097,-151.0,0.000129,2]
[340125795,1728647447106,-728.984178,0.000129,2]
[340125796,1728647447116,-151.0,0.000129,2]
[340125797,1728647447125,-151.0,0.000129,2]
[340125798,1728647447135,-153.507544,0.000129,2]
[340125799,1728647447144,-151.0,0.000129,2]
[340125800,1728647447153,-1003.6475967,0.00012946,2]
[340125801,1728647447163,-1000.0,0.0001295,2]
[340125802,1728647447173,-90456.57,0.00012955,2]
[340125803,1728647447184,-151.0,0.00012955,2]
[340125804,1728647447193,-151.0,0.00012955,2]
[340125805,1728647447203,-1855.989306,0.00012955,2]
[340125806,1728647447213,-153.405062,0.00012955,2]
[340125807,1728647447223,-151.0,0.00012955,2]
[340125808,1728647447232,-151.0,0.00012955,2]
[340125809,1728647447243,-151.0,0.00012955,2]
[340125810,1728647447252,-151.0,0.00012955,2]
[340125811,1728647447262,-151.0,0.00012955,2]
[340125812,1728647447272,-151.0,0.00012955,2]
[340125813,1728647447282,-151.0,0.00012955,2]
[340125814,1728647447292,-255.711878,0.00012955,2]
[340125815,1728647447302,-151.0,0.00012955,2]
[340125816,1728647447312,-278.131295,0.00012955,2]
[340125817,1728647447322,-278.131295,0.00012955,2]
[340125818,1728647447334,-151.0,0.00012955,2]
[340125819,1728647447345,-154.016179,0.00012955,2]
[340125820,1728647447354,-151.0,0.00012955,2]
[340125821,1728647447365,-151.0,0.00012955,2]
[340125822,1728647447376,-151.0,0.00012955,2]
[340125823,1728647447387,-151.0,0.00012955,2]
[340125824,1728647447396,-151.0,0.00012955,2]
[340125825,1728647447411,-151.0,0.00012955,2]
[340125826,1728647447421,-294.341139,0.00012955,2]
[340125827,1728647447431,-151.0,0.00012955,2]
[340125828,1728647447442,-489.075991,0.00012955,2]
[340125829,1728647447453,-151.0,0.00012955,2]
[340125830,1728647447464,-489.075991,0.00012955,2]
[340125831,1728647447475,-151.0,0.00012955,2]
[340125832,1728647447485,-508.344845,0.00012955,2]
[340125833,1728647447496,-305.46518,0.00012955,2]
[340125834,1728647447505,-508.344845,0.00012955,2]
[340125835,1728647447515,-305.46518,0.00012955,2]
[340125836,1728647447526,-176.573837,0.00012955,2]
[340125837,1728647447537,-176.573837,0.00012955,2]
[340125838,1728647447547,-203.817449,0.00012955,2]
[340125839,1728647447558,-151.0,0.00012955,2]
[340125840,1728647447568,-152.612165,0.00012955,2]
[340125841,1728647447578,-151.0,0.00012955,2]
[340125842,1728647447588,-151.0,0.00012955,2]
[340125843,1728647447598,-151.0,0.00012955,2]
[340125844,1728647447608,-151.0,0.00012955,2]
[340125845,1728647447618,-217.132247,0.00012955,2]
[340125846,1728647447628,-217.132247,0.00012955,2]
[340125847,1728647447638,-151.0,0.00012955,2]
[340125848,1728647447649,-151.0,0.00012955,2]
[340125849,1728647447659,-151.0,0.00012955,2]
[340125850,1728647447669,-151.0,0.00012955,2]
[340125851,1728647447680,-151.0,0.00012955,2]
[340125852,1728647447690,-228.62539,0.00012955,2]
[340125853,1728647447700,-228.62539,0.00012955,2]
[340125854,1728647447846,-151.0,0.00012955,2]
[340125855,1728647447856,-151.0,0.00012955,2]
[340125856,1728647447866,-194.892409,0.00012955,2]
[340125857,1728647447875,-194.892409,0.00012955,2]
[340125858,1728647447885,-151.0,0.00012955,2]
[340125859,1728647447894,-151.0,0.00012955,2]
[340125860,1728647447903,-164.735868,0.00012955,2]
[340125861,1728647447912,-164.735868,0.00012955,2]
[340125862,1728647447922,-611.926301,0.00012955,2]
[340125863,1728647447932,-202.107195,0.00012955,2]
[340125864,1728647447942,-156.36545,0.00012955,2]
[340125865,1728647447951,-611.926301,0.00012955,2]
[340125866,1728647447960,-202.107195,0.00012955,2]
[340125867,1728647447970,-351.176188,0.00012955,2]
[340125868,1728647447979,-351.176188,0.00012955,2]
[340125869,1728647447989,-151.0,0.00012955,2]
[340125870,1728647447998,-151.0,0.00012955,2]
[340125871,1728647448007,-151.0,0.00012955,2]
[340125872,1728647448017,-151.0,0.00012955,2]
[340125873,1728647448027,-864.831692,0.00012955,2]
[340125874,1728647448036,-864.831692,0.00012955,2]
[340125875,1728647448046,-479.730589,0.00012955,2]
[340125876,1728647448055,-479.730589,0.00012955,2]
[340125877,1728647448064,-304.786281,0.00012955,2]
[340125878,1728647448073,-304.786281,0.00012955,2]
[340125879,1728647448083,-151.0,0.00012955,2]
[340125880,1728647448092,-151.0,0.00012955,2]
[340125881,1728647448101,-170.875858,0.00012955,2]
[340125882,1728647448111,-151.0,0.00012955,2]
[340125883,1728647448120,-170.875858,0.00012955,2]
[340125884,1728647448129,-2387.92885197,0.00012955,2]
[340125885,1728647448142,-1886.91574201,0.00012955,2]
[340125886,1728647448156,-589.97098,0.00012955,2]
[340125887,1728647448464,-4427.35349902,0.00012955,2]
[340125888,1728647448475,-1198.606766,0.00012955,2]
[340125889,1728647448487,-9292.169073,0.00012955,2]
[340125890,1728647448497,-151.0,0.00012955,2]
[340125891,1728647448507,-1198.606766,0.00012955,2]
[340125892,1728647448517,-151.0,0.00012955,2]
[340125893,1728647448527,-728.984178,0.00012955,2]
[340125894,1728647448537,-192.36689,0.00012955,2]
[340125895,1728647448546,-728.984178,0.00012955,2]
[340125896,1728647448556,-151.0,0.00012955,2]
[340125897,1728647448566,-151.0,0.00012955,2]
[340125898,1728647448577,-151.0,0.00012955,2]
[340125899,1728647448586,-4194.55637523,0.00013,2]
[340125900,1728647448596,-410.27143366,0.00013,2]
[340125901,1728647448606,-1000.0,0.00013,2]
[340125902,1728647448616,-177.63,0.00013019,2]
[340125903,1728647448625,-2318.74809576,0.0001305,2]
[340125904,1728647448634,-167.0,0.00013129,2]
[340125905,1728647448645,-250.07,0.00013151,2]
[340125906,1728647448654,-800.0,0.00013248,2]
[340125907,1728647448664,-314.54,0.0001331,2]
[340125908,1728647448674,-429.57143751,0.00013499,2]
[340125909,1728647448685,-150.0,0.00013562,2]
[340125910,1728647448694,-358.83,0.00013562,2]
[340125911,1728647448705,-3017.11929714,0.00013599,2]
[340125912,1728647448715,-500.0,0.00013699,2]
[340125913,1728647448724,-500.0,0.00013699,2]
[340125914,1728647448733,-500.0,0.00013699,2]
[340125915,1728647448743,-500.03675344,0.00013699,2]
[340125916,1728647448753,-800.0,0.00013699,2]
[340125917,1728647448763,-800.0,0.00013699,2]
[340125918,1728647448772,-800.0,0.00013699,2]
[340125919,1728647448782,-800.0,0.00013699,2]
[340125920,1728647448791,-800.0,0.00013699,2]
[340125921,1728647448800,-800.0,0.00013699,2]
[340125922,1728647448810,-800.0,0.00013699,2]
[340125923,1728647448820,-800.0,0.00013699,2]
[340125924,1728647448829,-800.0,0.00013699,2]
[340125925,1728647448839,-800.0,0.00013699,2]
[340125926,1728647448849,-800.0,0.00013699,2]
[340125927,1728647448859,-800.0,0.00013699,2]
[340125928,1728647448868,-800.0,0.00013699,2]
[340125929,1728647448877,-800.0,0.00013699,2]
[340125930,1728647448887,-800.0,0.00013699,2]
[340125931,1728647448896,-800.0,0.00013699,2]
[340125932,1728647448906,-500.0,0.00013699,2]
[340125933,1728647448915,-200.0,0.00013699,2]
[340125934,1728647448925,-15889.55525724,0.00013699,2]
[340125935,1728647517130,500.0,0.00010068,2]
[340125937,1728648161580,247.93,9.975e-05,2]
[340125938,1728648238541,-1251.0,0.00010256,2]
[340125942,1728648588462,550.0,0.0001,2]
[340125948,1728648631941,-500.0,0.00010356,2]
[340125949,1728648631950,-208.14,0.00010356,2]
[340125950,1728648631997,-225.75648824,0.00010356,2]
[340125951,1728648632007,-221.21212706,0.00010356,2]
[340125952,1728648632017,-1137.44114521,0.0001071,2]
[340125953,1728648632028,-700.0,0.0001071,2]
[340125954,1728648632040,-1106.02,0.0001071,2]
[340125955,1728648632071,-476.03849466,0.0001071,2]
[340125956,1728648632083,-881.33627045,0.0001071,2]
[340125957,1728648632093,-1101.004,0.000109,2]
[340125958,1728648632103,-156.16,0.00010959,2]
[340125959,1728648632113,-158.68,0.00010959,2]
[340125960,1728648632122,-676.9,0.00011,2]
[340125961,1728648632132,-150.0,0.0001111,2]
[340125962,1728648632142,-300.0,0.00011163,2]
[340125963,1728648632151,-500.0,0.00011164,2]
[340125964,1728648632160,-500.0,0.00011164,2]
[340125965,1728648632169,-207.481,0.00011247,2]
[340125966,1728648632178,-150.0,0.00011247,2]
[340125967,1728648632188,-554.0,0.00011247,2]
[340125968,1728648632197,-522.72507441,0.00011247,2]
[340125969,1728648632208,-2575.37892559,0.00011247,2]
[340125970,1728648632219,-1142.86,0.00011247,2]
[340125971,1728648632228,-1511.03,0.00011247,2]
[340125972,1728648632238,-499.99,0.00011247,2]
[340125973,1728648632248,-455.69649117,0.00011247,2]
[340125974,1728648632261,-2837.56350883,0.00011247,2]
[340125975,1728648632271,-250.0,0.00011814,2]
[340125976,1728648632281,-1165.19,0.00011814,2]
[340125977,1728648632291,-2099.04,0.00011814,2]
[340125978,1728648632300,-2751.0,0.00011824,2]
[340125979,1728648632310,-230.33,0.00011855,2]
[340125980,1728648632319,-400.0,0.00011857,2]
[340125981,1728648632328,-250.0,0.00011859,2]
[340125982,1728648632338,-659.53,0.00011885,2]
[340125983,1728648632347,-7437.9820344,0.00011908,2]
[340125985,1728648632358,-939.82724979,0.00011908,2]
[340125986,1728648632369,-1879.8522855,0.00011908,2]
[340125987,1728648632380,-622.0,0.00011908,2]
[340125988,1728648632391,-13010.33843031,0.00011908,2]
[340125989,1728648632401,-150.58,0.00011914,2]
[340125990,1728648632411,-2607.45,0.00011941,2]
[340125991,1728648632421,-600.0,0.00011971,2]
[340125992,1728648632430,-600.0,0.00012,2]
[340125993,1728648632439,-2059.82,0.00012087,2]
[340125994,1728648632448,-250.0,0.00012116,2]
[340125995,1728648632457,-247.93,0.00012239,2]
[340125996,1728648632468,-420.0,0.00012265,2]
[340125997,1728648632477,-3741.92,0.00012287,2]
[340125998,1728648632486,-600.0,0.00012329,2]
[340125999,1728648632495,-600.0,0.00012329,2]
[340126000,1728648632504,-600.0,0.00012329,2]
[340126001,1728648632513,-600.0,0.00012329,2]
[340126002,1728648632524,-600.0,0.00012329,2]
[340126003,1728648632534,-600.0,0.00012329,2]
[340126004,1728648632544,-600.0,0.00012329,2]
[340126005,1728648632555,-600.0,0.00012329,2]
[340126006,1728648632564,-600.0,0.00012329,2]
[340126007,1728648632574,-600.0,0.00012329,2]
[340126008,1728648632583,-194.54029034,0.00012329,2]
[340126009,1728648632761,-167.0,0.00012491,2]
[340126010,1728648632771,-500.0,0.00012534,2]
[340126011,1728648632780,-500.0,0.00012808,2]
[340126012,1728648632789,-199.61623033,0.000129,2]
[340126013,1728648632798,-3706.63,0.00012955,2]
[340126014,1728648632807,-180.0,0.00013037,2]
[340126015,1728648632816,-227.0,0.000131,2]
[340126016,1728648632825,-157.27,0.00013183,2]
[340126017,1728648632834,-534.81,0.00013321,2]
[340126018,1728648632844,-400.0,0.00013339,2]
[340126019,1728648632853,-600.0,0.00013467,2]
[340126020,1728648632862,-587.0,0.00013476,2]
[340126021,1728648632872,-167.0,0.00013521,2]
[340126022,1728648632881,-755.56,0.00013562,2]
[340126023,1728648632890,-423.99,0.00013562,2]
[340126024,1728648632899,-755.56,0.00013562,2]
[340126025,1728648632908,-423.99,0.00013562,2]
[340126026,1728648632920,-423.11737073,0.00013568,2]
[340126027,1728648632930,-598.1049,0.00013623,2]
[340126028,1728648632941,-1283.3789091,0.00013694,2]
[340126029,1728648632950,-1848.9843793,0.00013694,2]
[340126030,1728648632961,-200.0,0.00013699,2]
[340126031,1728648632978,-35438.73,0.00013699,2]
[340126032,1728648632987,-500.0,0.00013699,2]
[340126033,1728648632997,-500.0,0.00013699,2]
[340126034,1728648633006,-500.0,0.00013699,2]
[340126035,1728648633015,-414.70113989,0.000137,2]
[340126036,1728648633027,-842.75463949,0.000137,2]
[340126037,1728648633036,-149.5712881,0.00013703,2]
[340126038,1728648633055,-1075.9549519,0.00013703,2]
[340126039,1728648633067,-488.67104629,0.00013703,2]
[340126040,1728648633079,-1382.78807392,0.00013703,2]
[340126041,1728648633090,-3155.96712328,0.00013703,2]
[340126042,1728648633103,-1602.76914189,0.00013703,2]
[340126043,1728648633114,-439.35,0.00013703,2]
[340126044,1728648633129,-1719.12877853,0.00013703,2]
[340126045,1728648633141,-268.07010932,0.00013703,2]
[340126046,1728648633152,-1378.29577402,0.00013703,2]
[340126047,1728648633163,-427.51880542,0.00013703,2]
[340126048,1728648633174,-5644.64864698,0.00013703,2]
[340126049,1728648638227,-3479.16822365,0.00013703,2]
[340126050,1728648638239,-1056.81499998,0.00013703,2]
[340126051,1728648638255,-1208.82474122,0.00013703,2]
[340126052,1728648638265,-3242.1931008,0.00013723,2]
[340126053,1728648638276,-2496.5816859,0.00013723,2]
[340126054,1728648638286,-629.4486417,0.00013733,2]
[340126055,1728648638295,-157.27,0.00013742,2]
[340126056,1728648638304,-167.0,0.00013814,2]
[340126057,1728648638314,-332.37,0.0001389,3]
[340126058,1728648638324,-435.0,0.000139,2]
[340126059,1728648638334,-1000.0,0.000139,10]
[340126060,1728648638344,-500.0,0.00013904,2]
[340126061,1728648638353,-500.0,0.00013904,2]
[340126062,1728648638363,-800.0,0.00013911,2]
[340126063,1728648638372,-994.74322728,0.00013968,2]
[340126064,1728648638381,-2000.0,0.00013973,2]
[340126065,1728648638391,-150.0,0.00013977,2]
[340126066,1728648638400,-150.0,0.00013977,2]
[340126067,1728648638410,-155.62278255,0.0001399,2]
[340126068,1728648638419,-691.1825091,0.0001399,2]
[340126069,1728648638429,-268.1655844,0.00014,2]
[340126070,1728648638438,-500.0,0.00014,2]
[340126071,1728648638447,-500.0,0.00014,2]
[340126072,1728648638456,-500.0,0.00014,2]
[340126073,1728648638466,-500.0,0.00014,2]
[340126074,1728648638475,-500.0,0.00014,2]
[340126075,1728648638485,-500.0,0.00014,2]
[340126076,1728648638494,-500.0,0.00014,2]
[340126077,1728648638503,-500.0,0.00014,2]
[340126078,1728648638512,-500.0,0.00014,2]
[340126079,1728648638522,-650.0,0.00014,2]
[340126080,1728648638531,-29653.0475323,0.0001406,3]
[340126081,1728648638540,-29653.0475323,0.0001407,3]
[340126082,1728648638549,-158.4045996,0.00014073,2]
[340126083,1728648638558,-500.0,0.00014073,2]
[340126084,1728648638568,-176.51195507,0.00014079,2]
[340126085,1728648638577,-151.0,0.0001408,2]
[340126086,1728648638586,-151.0,0.0001408,2]
[340126087,1728648638596,-151.0,0.0001408,2]
[340126088,1728648638605,-151.0,0.0001408,2]
[340126089,1728648638614,-151.0,0.0001408,2]
[340126090,1728648638623,-151.0,0.0001408,2]
[340126091,1728648638632,-151.0,0.0001408,2]
[340126092,1728648638642,-151.0,0.0001408,2]
[340126093,1728648638651,-1391.99198,0.0001408,2]
[340126094,1728648638661,-151.0,0.0001408,2]
[340126095,1728648638670,-1391.99198,0.0001408,2]
[340126096,1728648638679,-220.755854,0.0001408,2]
[340126097,1728648638688,-220.755854,0.0001408,2]
[340126098,1728648638697,-151.0,0.0001408,2]
[340126099,1728648638707,-151.0,0.0001408,2]
[340126100,1728648638717,-151.0,0.0001408,2]
[340126101,1728648638726,-543.9480495,0.0001408,2]
[340126102,1728648638735,-4959.2534565,0.0001408,2]
[340126103,1728648638745,-902.79802404,0.0001408,2]
[340126104,1728648638757,-500.0,0.0001408,2]
[340126105,1728648638768,-297.97689013,0.0001408,2]
[340126106,1728648638780,-18587.71595313,0.0001408,2]
[340126107,1728648638790,-118612.190129,0.0001408,3]
[340126108,1728648638799,-28840.844335,0.0001408,3]
[340126109,1728648638809,-177.66837526,0.0001408,2]
[340126110,1728648638819,-200.02031107,0.00014087,2]
[340126111,1728648638828,-337.14831339,0.00014089,2]
[340126112,1728648638838,-151.0,0.0001409,2]
[340126113,1728648638848,-151.0,0.0001409,2]
[340126114,1728648638858,-151.0,0.0001409,2]
[340126115,1728648638867,-151.0,0.0001409,2]
[340126116,1728648638876,-151.0,0.0001409,2]
[340126117,1728648638886,-203.817449,0.0001409,2]
[340126118,1728648638895,-152.612165,0.0001409,2]
[340126119,1728648638906,-151.0,0.0001409,2]
[340126120,1728648638917,-175.588094,0.0001409,2]
[340126121,1728648638928,-175.588094,0.0001409,2]
[340126122,1728648638938,-151.0,0.0001409,2]
[340126123,1728648638948,-151.0,0.0001409,2]
[340126124,1728648638959,-151.0,0.0001409,2]
[340126125,1728648638969,-244.537996,0.0001409,2]
[340126126,1728648638979,-244.537996,0.0001409,2]
[340126127,1728648638989,-151.0,0.0001409,2]
[340126128,1728648639000,-151.0,0.0001409,2]
[340126129,1728648639010,-151.0,0.0001409,2]
[340126130,1728648639019,-183.279108,0.0001409,2]
[340126131,1728648639029,-183.279108,0.0001409,2]
[340126132,1728648639039,-151.0,0.0001409,2]
[340126133,1728648639048,-151.0,0.0001409,2]
[340126134,1728648639058,-151.0,0.0001409,2]
[340126135,1728648639067,-151.0,0.0001409,2]
[340126136,1728648639076,-151.0,0.0001409,2]
[340126137,1728648639086,-151.0,0.0001409,2]
[340126138,1728648639097,-151.0,0.0001409,2]
[340126139,1728648639107,-151.0,0.0001409,2]